fUST/lending_fUST_20250828
["ID","MTS","AMOUNT","RATE_DAILY","PERIOD"]
[381795835,1756351844851,-541.62,0.00020753,2]
[381795836,1756351844860,-480.0,0.00020753,2]
[381795837,1756351844870,-480.0,0.00020753,2]
[381795838,1756351844879,-480.0,0.00020753,2]
[381795839,1756351844888,-480.0,0.00020753,2]
[381795840,1756351844897,-500.0,0.00020753,2]
[381795841,1756351844907,-480.0,0.00020753,2]
[381795842,1756351844916,-480.0,0.00020753,2]
[381795843,1756351844929,-480.0,0.00020753,2]
[381795844,1756351844939,-1096.62,0.00020753,2]
[381795845,1756351844948,-480.0,0.00020753,2]
[381795846,1756351844957,-480.0,0.00020753,2]
[381795847,1756351844968,-1044.81,0.00020753,2]
[381795848,1756351844978,-480.0,0.00020753,2]
[381795849,1756351844987,-480.0,0.00020753,2]
[381795850,1756351844997,-480.0,0.00020753,2]
[381795851,1756351845007,-480.0,0.00020753,2]
[381795852,1756351845016,-480.0,0.00020753,2]
[381795853,1756351845028,-480.0,0.00020753,2]
[381795854,1756351845038,-480.0,0.00020753,2]
[381795855,1756351845047,-480.0,0.00020753,2]
[381795856,1756351845057,-480.0,0.00020753,2]
[381795857,1756351845066,-480.0,0.00020753,2]
[381795858,1756351845076,-480.0,0.00020753,2]
[381795859,1756351845085,-480.0,0.00020753,2]
[381795860,1756351845096,-480.0,0.00020753,2]
[381795861,1756351845106,-480.0,0.00020753,2]
[381795862,1756351845115,-480.0,0.00020753,2]
[381795863,1756351845124,-482.44732218,0.00020753,2]
[381795864,1756351845134,-480.0,0.00020753,2]
[381795865,1756351845144,-480.0,0.00020753,2]
[381795866,1756351845153,-480.0,0.00020753,2]
[381795867,1756351845162,-480.0,0.00020753,2]
[381795868,1756351845172,-656.31,0.00020753,2]
[381795869,1756351845181,-480.0,0.00020753,2]
[381795870,1756351845191,-151.0,0.00020754,2]
[381795871,1756351845200,-500.0,0.00020754,2]
[381795872,1756351845210,-500.0,0.00020754,2]
[381795873,1756351845220,-500.0,0.00020754,2]
[381795874,1756351845230,-151.57731172,0.00020754,2]
[381795875,1756351845239,-500.0,0.00020754,2]
[381795876,1756351845249,-151.0,0.00020754,2]
[381795877,1756351845259,-151.0,0.00020754,2]
[381795878,1756351845270,-151.0,0.00020754,2]
[381795879,1756351845280,-500.0,0.00020754,2]
[381795880,1756351845290,-151.0,0.00020754,2]
[381795881,1756351845299,-1313.70471782,0.00020759,2]
[381795882,1756351845309,-262.0,0.00020764,2]
[381795883,1756351845318,-3496.74,0.00020767,2]
[381795884,1756351845327,-480.0,0.00020798,2]
[381795885,1756351845336,-946.45,0.00020798,2]
[381795886,1756351845345,-1572.79,0.00020798,2]
[381795887,1756351845355,-2996.24,0.00020798,2]
[381795888,1756351845364,-349.40172221,0.00020798,2]
[381795889,1756351845374,-2786.29,0.00020798,2]
[381795890,1756351845383,-480.0,0.00020798,2]
[381795891,1756351845393,-480.0,0.00020798,2]
[381795892,1756351845404,-859.04,0.00020798,2]
[381795893,1756351845416,-480.0,0.00020798,2]
[381795894,1756351845426,-480.0,0.00020798,2]
[381795895,1756351845436,-480.0,0.00020798,2]
[381795896,1756351845446,-1034.46,0.00020798,2]
[381795897,1756351845456,-481.18851892,0.00020798,2]
[381795898,1756351845467,-480.0,0.00020798,2]
[381795899,1756351845476,-480.0,0.00020798,2]
[381795900,1756351845485,-480.0,0.00020798,2]
[381795901,1756351845495,-480.0,0.00020798,2]
[381795902,1756351845505,-1020.79,0.00020798,2]
[381795903,1756351845517,-400.0,0.00020798,2]
[381795904,1756351845527,-495.58,0.00020798,2]
[381795905,1756351845536,-482.57301981,0.00020798,2]
[381795906,1756351845546,-480.0,0.00020798,2]
[381795907,1756351845556,-480.0,0.00020798,2]
[381795908,1756351845566,-370000.0,0.00020856,2]
[381795909,1756351845576,-1313.70471782,0.00020865,2]
[381795910,1756351845586,-246.17059374,0.00020873,2]
[381795911,1756351845596,-500.0,0.00020873,2]
[381795912,1756351845605,-500.0,0.00020873,2]
[381795913,1756351845615,-212.63853515,0.00020873,2]
[381795914,1756351845625,-500.0,0.00020873,2]
[381795915,1756351845635,-500.0,0.00020873,2]
[381795916,1756351845644,-368.95975832,0.00020873,2]
[381795917,1756351845653,-500.0,0.00020873,2]
[381795918,1756351845662,-579.48869001,0.00020873,2]
[381795919,1756351845674,-500.0,0.00020873,2]
[381795920,1756351845684,-500.0,0.00020873,2]
[381795921,1756351845694,-608.23649162,0.00020873,2]
[381795922,1756351845703,-213.60853764,0.00020873,2]
[381795923,1756351845714,-500.0,0.00020873,2]
[381795924,1756351845725,-400.57091245,0.00020873,2]
[381795925,1756351845735,-500.92900037,0.00020873,2]
[381795926,1756351845744,-500.0,0.00020873,2]
[381795927,1756351845755,-500.0,0.00020873,2]
[381795928,1756351845765,-500.0,0.00020873,2]
[381795929,1756351845775,-529.15628133,0.00020873,2]
[381795930,1756351845786,-500.0,0.00020873,2]
[381795931,1756351845797,-502.38389154,0.00020873,2]
[381795932,1756351845807,-500.0,0.00020873,2]
[381795933,1756351845816,-500.0,0.00020873,2]
[381795934,1756351845826,-501.00643464,0.00020873,2]
[381795935,1756351845836,-500.0,0.00020873,2]
[381795936,1756351845846,-500.97343628,0.00020873,2]
[381795937,1756351845855,-500.0,0.00020873,2]
[381795938,1756351845864,-500.0,0.00020873,2]
[381795939,1756351845874,-500.4115154,0.00020873,2]
[381795940,1756351845884,-500.0,0.00020873,2]
[381795941,1756351845893,-500.0,0.00020873,2]
[381795942,1756351845902,-500.0,0.00020873,2]
[381795943,1756351845912,-500.0,0.00020873,2]
[381795944,1756351845922,-551.77534748,0.00020873,2]
[381795945,1756351845932,-195.10956719,0.00020873,2]
[381795946,1756351845942,-502.64043492,0.00020873,2]
[381795947,1756351845951,-503.61448562,0.00020873,2]
[381795948,1756351845960,-501.18037801,0.00020873,2]
[381795949,1756351845970,-500.0,0.00020873,2]
[381795950,1756351845980,-500.0,0.00020873,2]
[381795951,1756351845990,-500.0,0.00020873,2]
[381795952,1756351845999,-501.22905521,0.00020873,2]
[381795953,1756351846009,-1266.29,0.00020901,2]
[381795954,1756351846019,-480.0,0.00020901,2]
[381795955,1756351846028,-4547.58,0.00020901,2]
[381795956,1756351846038,-480.0,0.00020901,2]
[381795957,1756351846048,-820.35,0.00020901,2]
[381795958,1756351846059,-480.0,0.00020902,2]
[381795959,1756351846069,-1787.86,0.00020902,2]
[381795960,1756351846078,-663.51,0.00020902,2]
[381795961,1756351846088,-614.48,0.00020902,2]
[381795962,1756351846099,-480.0,0.00020902,2]
[381795963,1756351846109,-3429.46,0.00020902,2]
[381795964,1756351846119,-2001.5,0.00020902,2]
[381795965,1756351846129,-1331.76,0.00020902,2]
[381795966,1756351846139,-574.97,0.00020902,2]
[381795967,1756351846148,-480.0,0.00020902,2]
[381795968,1756351846158,-1697.51,0.00020902,2]
[381795969,1756351846171,-481.11707133,0.00020902,2]
[381795970,1756351846180,-772.38,0.00020902,2]
[381795971,1756351846190,-1314.65,0.00020902,2]
[381795972,1756351846202,-480.0,0.00020902,2]
[381795973,1756351846213,-1549.99,0.00020902,2]
[381795974,1756351846223,-605.84,0.00020902,2]
[381795975,1756351846233,-777.36,0.00020902,2]
[381795976,1756351846243,-480.0,0.00020902,2]
[381795977,1756351846254,-480.0,0.00020902,2]
[381795978,1756351846264,-480.0,0.00020902,2]
[381795979,1756351846273,-1054.59,0.00020902,2]
[381795980,1756351846282,-1649.91,0.00020902,2]
[381795981,1756351846292,-1815.18,0.00020902,2]
[381795982,1756351846301,-1824.07,0.00020902,2]
[381795983,1756351846310,-555.98,0.00020902,2]
[381795984,1756351846320,-480.0,0.00020902,2]
[381795985,1756351846329,-480.0,0.00020913,2]
[381795986,1756351846338,-480.0,0.00020913,2]
[381795987,1756351846348,-480.0,0.00020913,2]
[381795988,1756351846357,-480.0,0.00020913,2]
[381795989,1756351846366,-839.27,0.00020913,2]
[381795990,1756351846376,-480.0,0.00020913,2]
[381795991,1756351846385,-1284.77,0.00020913,2]
[381795992,1756351846394,-1216.01,0.00020913,2]
[381795993,1756351846403,-484.66674664,0.00020913,2]
[381795994,1756351846413,-480.0,0.00020913,2]
[381795995,1756351846422,-480.0,0.00020913,2]
[381795996,1756351846431,-1613.99,0.00020913,2]
[381795997,1756351846440,-629.98,0.00020913,2]
[381795998,1756351846450,-480.0,0.00020913,2]
[381795999,1756351846459,-1560.74,0.00020913,2]
[381796000,1756351846468,-480.0,0.00020913,2]
[381796001,1756351846477,-1963.49,0.00020913,2]
[381796002,1756351846487,-451.61536031,0.00020913,2]
[381796003,1756351846496,-480.0,0.00020913,2]
[381796004,1756351846509,-480.0,0.00020913,2]
[381796005,1756351846518,-4222.52,0.00020913,2]
[381796006,1756351846528,-2363.03,0.00020913,2]
[381796007,1756351846537,-649.06,0.00020913,2]
[381796008,1756351846546,-480.0,0.00020913,2]
[381796009,1756351846556,-1241.29,0.00020913,2]
[381796010,1756351846565,-480.0,0.00020913,2]
[381796011,1756351846574,-480.0,0.00020913,2]
[381796012,1756351846583,-480.0,0.00020915,2]
[381796013,1756351846593,-622.0,0.00020915,2]
[381796014,1756351846602,-755.66,0.00020915,2]
[381796015,1756351846612,-480.0,0.00020915,2]
[381796016,1756351846621,-480.0,0.00020915,2]
[381796017,1756351846631,-822.74,0.00020915,2]
[381796018,1756351846641,-480.0,0.00020915,2]
[381796019,1756351846650,-1185.9,0.00020915,2]
[381796020,1756351846659,-1784.19,0.00020915,2]
[381796021,1756351846669,-949.51,0.00020915,2]
[381796022,1756351846679,-480.0,0.00020915,2]
[381796023,1756351846688,-632.4,0.00020915,2]
[381796024,1756351846698,-481.29792583,0.00020915,2]
[381796025,1756351846707,-480.0,0.00020915,2]
[381796026,1756351846717,-480.0,0.00020915,2]
[381796027,1756351846726,-682.45,0.00020915,2]
[381796028,1756351846735,-484.04,0.00020915,2]
[381796029,1756351846745,-601.04,0.00020915,2]
[381796030,1756351846756,-500.0,0.00020915,2]
[381796031,1756351846767,-759.31,0.00020915,2]
[381796032,1756351846776,-807.4,0.00020915,2]
[381796033,1756351846785,-768.19,0.00020915,2]
[381796034,1756351846795,-510.26,0.00020915,2]
[381796035,1756351846804,-532.02,0.00020915,2]
[381796036,1756351846814,-681.41,0.00020915,2]
[381796037,1756351846975,-1242.33,0.00020915,2]
[381796038,1756351846992,-405.24850565,0.00020915,2]
[381796039,1756351847002,-602.62,0.00020915,2]
[381796040,1756351847012,-480.0,0.00020915,2]
[381796041,1756351847022,-1145.97,0.00020915,2]
[381796042,1756351847032,-632.39,0.00020915,2]
[381796043,1756351847041,-1785.89,0.00020915,2]
[381796044,1756351847052,-1142.3,0.00020915,2]
[381796045,1756351847063,-482.15570483,0.00020915,2]
[381796046,1756351847073,-480.0,0.00020915,2]
[381796047,1756351847083,-480.0,0.00020915,2]
[381796048,1756351847092,-480.0,0.00020915,2]
[381796049,1756351847102,-512.03,0.00020915,2]
[381796050,1756351847112,-903.2,0.00020915,2]
[381796051,1756351847123,-627.33,0.00020915,2]
[381796052,1756351847133,-584.01,0.00020915,2]
[381796053,1756351847142,-525.48,0.00020915,2]
[381796054,1756351847152,-1073.96,0.00020915,2]
[381796055,1756351847162,-598.74,0.00020915,2]
[381796056,1756351847173,-738.84,0.00020915,2]
[381796057,1756351847183,-480.0,0.00020915,2]
[381796058,1756351847192,-538.85,0.00020915,2]
[381796059,1756351847202,-526.96,0.00020915,2]
[381796060,1756351847211,-480.0,0.00020915,2]
[381796061,1756351847221,-480.0,0.00020915,2]
[381796062,1756351847231,-480.0,0.00020915,2]
[381796063,1756351847241,-990.1,0.00020915,2]
[381796064,1756351847251,-585.91,0.00020915,2]
[381796065,1756351847262,-480.0,0.00020915,2]
[381796066,1756351847272,-1489.35,0.00020915,2]
[381796067,1756351847283,-480.0,0.00020915,2]
[381796068,1756351847294,-480.0,0.00020915,2]
[381796069,1756351847303,-480.0,0.00020915,2]
[381796070,1756351847313,-480.0,0.00020915,2]
[381796071,1756351847325,-688.92,0.00020915,2]
[381796072,1756351847335,-480.0,0.00020915,2]
[381796073,1756351847347,-480.0,0.00020915,2]
[381796074,1756351847358,-785.94,0.00020915,2]
[381796075,1756351847368,-480.0,0.00020915,2]
[381796076,1756351847378,-480.0,0.00020915,2]
[381796077,1756351847388,-480.0,0.00020915,2]
[381796078,1756351847397,-480.0,0.00020915,2]
[381796079,1756351847407,-540.97,0.00020915,2]
[381796080,1756351847417,-480.0,0.00020915,2]
[381796081,1756351847428,-480.0,0.00020915,2]
[381796082,1756351847438,-819.28,0.00020915,2]
[381796083,1756351847450,-1050.11,0.00020915,2]
[381796084,1756351847460,-480.0,0.00020915,2]
[381796085,1756351847469,-480.0,0.00020915,2]
[381796086,1756351847479,-480.0,0.00020915,2]
[381796087,1756351847489,-546.64,0.00020915,2]
[381796088,1756351847498,-1410.89,0.00020915,2]
[381796089,1756351847508,-4054.55,0.00020915,2]
[381796090,1756351847519,-481.82642187,0.00020915,2]
[381796091,1756351847529,-480.0,0.00020915,2]
[381796092,1756351847542,-480.0,0.00020915,2]
[381796093,1756351847553,-480.0,0.00020915,2]
[381796094,1756351847563,-531.15,0.00020915,2]
[381796095,1756351847573,-480.0,0.00020915,2]
[381796096,1756351847583,-480.0,0.00020915,2]
[381796097,1756351847592,-168.0,0.00020936,2]
[381796098,1756351847602,-337.0,0.00020936,2]
[381796099,1756351847611,-884.41,0.00020955,2]
[381796100,1756351847623,-480.0,0.00020955,2]
[381796101,1756351847633,-480.0,0.00020955,2]
[381796102,1756351847643,-630.16,0.00020957,2]
[381796103,1756351847652,-717.35,0.00020957,2]
[381796104,1756351847662,-480.0,0.00020957,2]
[381796105,1756351847672,-481.60368627,0.00020957,2]
[381796106,1756351847682,-831.57,0.00020957,2]
[381796107,1756351847692,-637.22,0.00020957,2]
[381796108,1756351847703,-1067.43,0.00020957,2]
[381796109,1756351847712,-480.8933424,0.00020957,2]
[381796110,1756351847723,-481.36109094,0.00020957,2]
[381796111,1756351847733,-775.06,0.00020957,2]
[381796112,1756351847744,-480.0,0.00020957,2]
[381796113,1756351847756,-480.0,0.00020957,2]
[381796114,1756351847766,-480.0,0.00020957,2]
[381796115,1756351847776,-480.0,0.00020957,2]
[381796116,1756351847786,-633.25,0.00020957,2]
[381796117,1756351847796,-1234.93,0.00020957,2]
[381796118,1756351847806,-485.04708374,0.00020957,2]
[381796119,1756351847816,-880.85,0.00020957,2]
[381796120,1756351847827,-659.66,0.00020957,2]
[381796121,1756351847838,-480.0,0.00020957,2]
[381796122,1756351847848,-994.62,0.00020957,2]
[381796123,1756351847857,-480.0,0.00020957,2]
[381796124,1756351847867,-480.0,0.00020957,2]
[381796125,1756351847876,-642.23,0.00020957,2]
[381796126,1756351847887,-480.0,0.00020957,2]
[381796127,1756351847896,-580.41,0.00020957,2]
[381796128,1756351847906,-480.0,0.00020957,2]
[381796129,1756351847916,-499.74,0.00020957,2]
[381796130,1756351847925,-480.0,0.00020957,2]
[381796131,1756351847935,-480.0,0.00020957,2]
[381796132,1756351847945,-480.0,0.00020957,2]
[381796133,1756351847955,-1626.15,0.00020957,2]
[381796134,1756351847964,-1026.02,0.00020957,2]
[381796135,1756351847974,-888.68,0.00020957,2]
[381796136,1756351847984,-610.93,0.00020957,2]
[381796137,1756351847994,-1445.05,0.00020957,2]
[381796138,1756351848003,-480.0,0.00020957,2]
[381796139,1756351848013,-510.53,0.00020957,2]
[381796140,1756351848023,-747.73,0.00020957,2]
[381796141,1756351848032,-480.0,0.00020957,2]
[381796142,1756351848042,-480.0,0.00020957,2]
[381796143,1756351848052,-480.0,0.00020957,2]
[381796144,1756351848062,-618.56,0.00020957,2]
[381796145,1756351848072,-500.0,0.00020957,2]
[381796146,1756351848082,-500.0,0.00020957,2]
[381796147,1756351848091,-480.0,0.00020957,2]
[381796148,1756351848100,-480.0,0.00020957,2]
[381796149,1756351848110,-480.0,0.00020957,2]
[381796150,1756351848120,-689.96,0.00020957,2]
[381796151,1756351848130,-722.07,0.00020957,2]
[381796152,1756351848141,-480.0,0.00020957,2]
[381796153,1756351848150,-480.0,0.00020957,2]
[381796154,1756351848160,-480.0,0.00020957,2]
[381796155,1756351848169,-823.25,0.00020957,2]
[381796156,1756351848179,-480.0,0.00020957,2]
[381796157,1756351848189,-578.58,0.00020957,2]
[381796158,1756351848199,-480.0,0.00020957,2]
[381796159,1756351848209,-480.0,0.00020957,2]
[381796160,1756351848218,-480.0,0.00020957,2]
[381796161,1756351848228,-674.2,0.00020957,2]
[381796162,1756351848238,-480.0,0.00020957,2]
[381796163,1756351848248,-996.37,0.00020957,2]
[381796164,1756351848257,-480.0,0.00020957,2]
[381796165,1756351848267,-480.0,0.00020957,2]
[381796166,1756351848278,-480.0,0.00020957,2]
[381796167,1756351848288,-572.25,0.00020957,2]
[381796168,1756351848298,-722.01,0.00020957,2]
[381796169,1756351848308,-776.99,0.00020957,2]
[381796170,1756351848318,-567.2,0.00020957,2]
[381796171,1756351848328,-480.0,0.00020957,2]
[381796172,1756351848338,-480.0,0.00020957,2]
[381796173,1756351848348,-480.0,0.00020957,2]
[381796174,1756351848358,-480.0,0.00020957,2]
[381796175,1756351848368,-739.72,0.00020957,2]
[381796176,1756351848378,-1305.05,0.00020957,2]
[381796177,1756351848389,-562.68,0.00020957,2]
[381796178,1756351848398,-748.75,0.00020957,2]
[381796179,1756351848408,-480.0,0.00020957,2]
[381796180,1756351848418,-480.0,0.00020957,2]
[381796181,1756351848427,-963.42,0.00020957,2]
[381796182,1756351848436,-645.57,0.00020957,2]
[381796183,1756351848446,-480.0,0.00020957,2]
[381796184,1756351848455,-669.18,0.00020957,2]
[381796185,1756351848464,-480.0,0.00020957,2]
[381796186,1756351848474,-549.81,0.00020957,2]
[381796187,1756351848483,-480.0,0.00020957,2]
[381796188,1756351848492,-480.0,0.00020957,2]
[381796189,1756351848502,-1313.70471782,0.0002097,2]
[381796190,1756351848512,-173.67381751,0.00020971,2]
[381796191,1756351848521,-500.0,0.00020974,2]
[381796192,1756351848530,-1000.0,0.00020975,2]
[381796193,1756351848539,-1000.0,0.00020975,2]
[381796194,1756351848548,-884.5330352,0.00020975,2]
[381796195,1756351848557,-852.35,0.00020976,2]
[381796196,1756351848566,-8049.65,0.00020976,2]
[381796197,1756351848576,-9528.66005278,0.00020984,2]
[381796198,1756351848585,-328.0,0.00020986,2]
[381796199,1756351848594,-151.0,0.00021,4]
[381796200,1756351848603,-151.0,0.00021,4]
[381796201,1756351848613,-151.0,0.00021,4]
[381796202,1756351848622,-2973.82,0.00021016,2]
[381796203,1756351848632,-480.0,0.00021016,2]
[381796204,1756351848641,-480.0,0.00021016,2]
[381796205,1756351848650,-480.0,0.00021016,2]
[381796206,1756351848660,-480.0,0.00021016,2]
[381796207,1756351848669,-480.0,0.00021016,2]
[381796208,1756351848679,-695.26,0.00021016,2]
[381796209,1756351848689,-1252.17,0.00021016,2]
[381796210,1756351848699,-480.0,0.00021027,2]
[381796211,1756351848708,-480.0,0.00021027,2]
[381796212,1756351848718,-480.0,0.00021027,2]
[381796213,1756351848728,-514.34,0.00021027,2]
[381796214,1756351848737,-592.22250925,0.00021027,2]
[381796215,1756351848747,-480.0,0.00021027,2]
[381796216,1756351848758,-480.0,0.00021027,2]
[381796217,1756351848768,-480.0,0.00021027,2]
[381796218,1756351848777,-480.0,0.00021027,2]
[381796219,1756351848787,-489.47,0.00021027,2]
[381796220,1756351848796,-480.0,0.00021027,2]
[381796221,1756351848806,-480.0,0.00021027,2]
[381796222,1756351848816,-480.0,0.00021027,2]
[381796223,1756351848825,-480.0,0.00021027,2]
[381796224,1756351848835,-480.0,0.00021027,2]
[381796225,1756351848845,-480.0,0.00021027,2]
[381796226,1756351848854,-480.0,0.00021027,2]
[381796227,1756351848864,-480.0,0.00021027,2]
[381796228,1756351848873,-482.15838369,0.00021027,2]
[381796229,1756351848883,-480.0,0.00021027,2]
[381796230,1756351848893,-656.24,0.00021027,2]
[381796231,1756351848904,-480.0,0.00021027,2]
[381796232,1756351848913,-480.0,0.00021027,2]
[381796233,1756351848923,-481.26800309,0.00021027,2]
[381796234,1756351848933,-480.0,0.00021027,2]
[381796235,1756351848942,-481.12422494,0.00021027,2]
[381796236,1756351848952,-558.46,0.00021027,2]
[381796237,1756351848962,-480.0,0.00021027,2]
[381796238,1756351848972,-480.0,0.00021027,2]
[381796239,1756351848982,-480.0,0.00021027,2]
[381796240,1756351848992,-480.0,0.00021027,2]
[381796241,1756351849002,-480.0,0.00021027,2]
[381796242,1756351849015,-480.0,0.00021027,2]
[381796243,1756351849024,-295.90600992,0.00021027,2]
[381796244,1756351849034,-480.0,0.00021027,2]
[381796245,1756351849046,-480.0,0.00021027,2]
[381796246,1756351849061,-231.41900223,0.00021027,2]
[381796247,1756351849071,-628.97,0.00021027,2]
[381796248,1756351849080,-480.0,0.00021027,2]
[381796249,1756351849090,-631.53,0.00021027,2]
[381796250,1756351849099,-480.0,0.00021027,2]
[381796251,1756351849109,-480.0,0.00021027,2]
[381796252,1756351849126,-480.0,0.00021027,2]
[381796253,1756351849137,-480.0,0.00021027,2]
[381796254,1756351849146,-589.92,0.00021027,2]
[381796255,1756351849156,-480.0,0.00021027,2]
[381796256,1756351849166,-480.0,0.00021027,2]
[381796257,1756351849176,-480.0,0.00021027,2]
[381796258,1756351849186,-480.0,0.00021027,2]
[381796259,1756351849196,-480.0,0.00021027,2]
[381796260,1756351849205,-480.0,0.00021027,2]
[381796261,1756351849215,-612.89,0.00021027,2]
[381796262,1756351849224,-480.0,0.00021027,2]
[381796263,1756351849234,-481.28382421,0.00021027,2]
[381796264,1756351849244,-480.0,0.00021027,2]
[381796265,1756351849254,-480.0,0.00021027,2]
[381796266,1756351849263,-480.0,0.00021027,2]
[381796267,1756351849273,-480.0,0.00021027,2]
[381796268,1756351849283,-480.0,0.00021027,2]
[381796269,1756351849292,-480.0,0.00021027,2]
[381796270,1756351849302,-480.0,0.00021027,2]
[381796271,1756351849311,-482.43047213,0.00021027,2]
[381796272,1756351849321,-480.0,0.00021027,2]
[381796273,1756351849330,-480.0,0.00021027,2]
[381796274,1756351849340,-480.0,0.00021027,2]
[381796275,1756351849349,-480.0,0.00021027,2]
[381796276,1756351849358,-480.0,0.00021027,2]
[381796277,1756351849368,-480.0,0.00021027,2]
[381796278,1756351849378,-480.0,0.00021027,2]
[381796279,1756351849389,-480.0,0.00021027,2]
[381796280,1756351849398,-480.0,0.00021027,2]
[381796281,1756351849407,-480.0,0.00021027,2]
[381796282,1756351849417,-480.0,0.00021027,2]
[381796283,1756351849427,-626.32,0.00021027,2]
[381796284,1756351849487,-480.0,0.00021027,2]
[381796285,1756351849496,-480.0,0.00021027,2]
[381796286,1756351849506,-480.0,0.00021027,2]
[381796287,1756351849515,-480.0,0.00021027,2]
[381796288,1756351849525,-480.0,0.00021027,2]
[381796289,1756351849535,-480.0,0.00021027,2]
[381796290,1756351849544,-480.0,0.00021027,2]
[381796291,1756351849553,-482.0766652,0.00021027,2]
[381796292,1756351849562,-480.0,0.00021027,2]
[381796293,1756351849571,-480.0,0.00021027,2]
[381796294,1756351849580,-480.0,0.00021027,2]
[381796295,1756351849590,-481.39683367,0.00021027,2]
[381796296,1756351849599,-554.03,0.00021027,2]
[381796297,1756351849608,-480.0,0.00021027,2]
[381796298,1756351849617,-480.0,0.00021027,2]
[381796299,1756351849626,-480.0,0.00021027,2]
[381796300,1756351849637,-480.0,0.00021027,2]
[381796301,1756351849646,-480.0,0.00021027,2]
[381796302,1756351849656,-480.0,0.00021027,2]
[381796303,1756351849666,-480.0,0.00021027,2]
[381796304,1756351849675,-480.0,0.00021027,2]
[381796305,1756351849685,-482.09952327,0.00021027,2]
[381796306,1756351849695,-506.44,0.00021027,2]
[381796307,1756351849706,-480.0,0.00021027,2]
[381796308,1756351849716,-480.0,0.00021027,2]
[381796309,1756351849726,-585.81,0.00021027,2]
[381796310,1756351849737,-480.0,0.00021027,2]
[381796311,1756351849747,-480.0,0.00021027,2]
[381796312,1756351849760,-480.0,0.00021027,2]
[381796313,1756351849770,-722.77,0.00021027,2]
[381796314,1756351849782,-480.0,0.00021027,2]
[381796315,1756351849792,-480.0,0.00021027,2]
[381796316,1756351849803,-480.0,0.00021027,2]
[381796317,1756351849813,-480.0,0.00021027,2]
[381796318,1756351849823,-875.55,0.00021027,2]
[381796319,1756351849834,-480.0,0.00021027,2]
[381796320,1756351849844,-480.0,0.00021027,2]
[381796321,1756351849853,-480.0,0.00021027,2]
[381796322,1756351849863,-480.0,0.00021027,2]
[381796323,1756351849873,-480.0,0.00021027,2]
[381796324,1756351849882,-1387.83,0.00021027,2]
[381796325,1756351849896,-729.43,0.00021027,2]
[381796326,1756351849904,-490.06,0.00021027,2]
[381796327,1756351849917,-480.0,0.00021027,2]
[381796328,1756351849927,-480.0,0.00021027,2]
[381796329,1756351849936,-480.0,0.00021027,2]
[381796330,1756351849946,-480.0,0.00021027,2]
[381796331,1756351849955,-480.0,0.00021027,2]
[381796332,1756351849964,-565.38,0.00021027,2]
[381796333,1756351849974,-499.48,0.00021027,2]
[381796334,1756351849983,-480.0,0.00021027,2]